bitfinex/quotes_SOLUSD_20250414
["timestamp","ask_amount","ask_price","bid_price","bid_amount"]
[1744604442010,0.03,132.61,132.58,11.71327772]
[1744604442321,0.03,132.61,132.59,11.71327772]
[1744604442526,0.03,132.61,132.59,94.31307772]
[1744604442906,0.03,132.61,132.6,6.0331]
[1744604445105,0.03,132.61,132.6,17.74637772]
[1744604446621,0.28432314,132.65,132.61,88.6024]
[1744604447644,11.71327772,132.64,132.61,82.5698]
[1744604448011,0.28432314,132.65,132.61,94.28307772]
[1744604448314,0.28432314,132.65,132.61,88.6024]
[1744604448514,11.99760086,132.65,132.61,88.6024]
[1744604449411,0.28432314,132.65,132.61,88.6024]
[1744604449737,7.6888,132.68,132.61,88.6024]
[1744604450036,0.28432314,132.65,132.61,88.6024]
[1744604450619,0.28432314,132.65,132.61,82.5698]
[1744604450911,11.99760086,132.65,132.61,82.5698]
[1744604451132,11.99760086,132.65,132.61,88.6025]
[1744604451535,0.28432314,132.65,132.61,88.6025]
[1744604452032,11.99760086,132.65,132.61,82.5698]
[1744604453133,11.99760086,132.65,132.61,88.6024]
[1744604454431,18.02850086,132.65,132.61,82.5698]
[1744604456638,11.99760086,132.65,132.61,88.6024]
[1744604458339,24.964972,132.65,132.61,82.5698]
[1744604458538,11.71327772,132.63,132.61,82.5698]
[1744604461616,7.27216157,132.69,132.61,88.6024]
[1744604461941,0.03,132.69,132.63,11.71327772]
[1744604462143,11.71327772,132.68,132.63,11.71327772]
[1744604462522,6.0592,132.69,132.64,6.0313]
[1744604462731,11.71327772,132.68,132.64,88.6011]
[1744604463424,18.67964886,132.69,132.64,82.5698]
[1744604463622,11.71327772,132.67,132.64,82.5698]
[1744604464741,0.28432314,132.66,132.64,82.5698]
[1744604464918,11.71327772,132.65,132.64,82.5698]
[1744604465125,11.99760086,132.65,132.64,82.5698]
[1744604465420,0.28432314,132.65,132.64,82.5698]
[1744604465635,11.99760086,132.65,132.64,82.5698]
[1744604466235,11.99760086,132.65,132.6,6.033]
[1744604466236,18.933972,132.64,132.6,82.5698]
[1744604466420,11.71327772,132.61,132.6,82.5698]
[1744604466621,11.99760086,132.61,132.6,82.5698]
[1744604467955,18.03030086,132.61,132.6,82.5698]
[1744604468746,36.67994972,132.61,132.6,82.5698]
[1744604469324,11.99760086,132.61,132.6,82.5698]
[1744604469531,13.1324,132.62,132.6,82.5698]
[1744604469532,7.1,132.62,132.6,82.5698]
[1744604469951,18.81327772,132.62,132.6,82.5698]
[1744604471353,11.71327772,132.61,132.6,82.5698]
[1744604472035,7.1,132.62,132.6,82.5698]
[1744604472341,11.71327772,132.64,132.6,82.5698]
[1744604472544,11.71327772,132.65,132.6,101.87397772]
[1744604472728,11.74327772,132.69,132.64,11.71327772]
[1744604472931,11.74327772,132.69,132.65,6.0309]
[1744604473145,0.03,132.69,132.65,6.0309]
[1744604473347,11.99760086,132.68,132.64,88.601]
[1744604473538,11.71327772,132.66,132.64,82.5698]
[1744604474439,11.99760086,132.67,132.64,82.5698]
[1744604474640,18.02760086,132.67,132.64,82.5698]
[1744604475245,0.28432314,132.68,132.64,82.5698]
[1744604475638,11.74327772,132.69,132.64,100.31437772]
[1744604476352,11.74327772,132.69,132.66,11.71327772]
[1744604476353,0.03,132.69,132.66,11.71327772]
[1744604476560,0.03,132.69,132.66,17.74367772]
[1744604476757,0.03,132.69,132.67,11.71327772]
[1744604477049,0.03,132.69,132.67,94.28307772]
[1744604478653,0.03,132.69,132.67,88.5997]
[1744604479247,0.03,132.69,132.67,82.5698]
[1744604479446,11.74327772,132.69,132.67,82.5698]
[1744604479959,0.31432314,132.69,132.67,82.5698]
[1744604480159,0.03,132.69,132.67,88.5996]
[1744604480538,0.03,132.69,132.67,82.5698]
[1744604480941,0.03,132.69,132.67,88.5997]
[1744604481657,1.0,132.78,132.69,82.5398]
[1744604481849,11.71327772,132.71,132.69,82.5398]
[1744604483038,11.71327772,132.7,132.69,82.5398]
[1744604483466,21.0938,132.74,132.69,82.5398]
[1744604483646,11.99760086,132.7,132.69,82.5398]
[1744604484040,11.99760086,132.72,132.69,82.5398]
[1744604484243,11.99760086,132.72,132.69,83.5398]
[1744604484850,11.99760086,132.72,132.7,1.0]
[1744604485261,7.1,132.75,132.7,83.5398]
[1744604485439,7.1,132.75,132.72,1.0]
[1744604485643,18.81327772,132.75,132.72,1.0]
[1744604485867,11.71327772,132.74,132.72,1.0]
[1744604486239,18.81327772,132.75,132.72,1.0]
[1744604486665,24.83967772,132.75,132.72,1.0]
[1744604486851,18.81327772,132.75,132.72,1.0]
[1744604487650,7.1,132.75,132.72,1.0]
[1744604487857,7.1,132.75,132.73,1.0]
[1744604488073,17.73927772,132.76,132.73,83.5398]
[1744604488770,0.03,132.77,132.76,83.5398]
[1744604489070,0.03,132.77,132.76,82.5398]
[1744604489251,17.76867772,132.77,132.76,82.5398]
[1744604489451,18.05300086,132.77,132.76,82.5398]
[1744604490050,0.03,132.77,132.76,82.5398]
[1744604490446,12.02760086,132.77,132.76,82.5398]
[1744604490863,0.03,132.77,132.76,82.5398]
[1744604491071,0.03,132.77,132.76,89.5657]
[1744604491369,0.03,132.77,132.76,101.27897772]
[1744604491563,0.03,132.77,132.76,83.5398]
[1744604491959,0.03,132.77,132.76,89.5657]
[1744604492267,0.03,132.77,132.76,101.27897772]
[1744604494373,0.03,132.77,132.76,95.25307772]
[1744604494770,0.03,132.77,132.76,83.5398]
[1744604495750,0.03,132.77,132.76,101.27897772]
[1744604496573,6.0231,132.82,132.8,82.5098]
[1744604497171,6.0231,132.82,132.8,83.5098]
[1744604497753,17.73617772,132.83,132.8,83.5098]
[1744604498975,6.0229,132.83,132.8,83.5098]
[1744604499265,6.052,132.85,132.8,83.5098]
[1744604499567,17.76527772,132.85,132.81,1.0]
[1744604499750,11.71327772,132.84,132.81,1.0]
[1744604500275,0.03,132.85,132.83,1.0]
[1744604500463,6.0518,132.85,132.81,83.5098]
[1744604500773,0.03,132.85,132.83,1.0]
[1744604501378,0.03,132.85,132.82,1.0]
[1744604501676,0.31432314,132.85,132.83,1.0]
[1744604502174,12.02760086,132.85,132.83,1.0]
[1744604502675,0.31432314,132.85,132.83,1.0]
[1744604503391,11.99760086,132.84,132.83,82.5098]
[1744604504372,0.03,132.85,132.84,82.5098]
[1744604504562,62.55688815,132.85,132.82,82.5098]
[1744604504772,18.02030086,132.83,132.82,82.5098]
[1744604505077,6.30702314,132.83,132.82,82.5098]
[1744604505277,18.02030086,132.83,132.82,82.5098]
[1744604505466,6.30702314,132.83,132.82,82.5098]
[1744604505668,0.28432314,132.83,132.82,82.5098]
[1744604506076,0.03,132.85,132.82,82.5098]
[1744604506382,0.03,132.85,132.83,1.0]
[1744604506575,0.03,132.85,132.82,101.24617772]
[1744604506776,0.03,132.85,132.83,1.0]
[1744604506973,0.03,132.85,132.83,94.22307772]
[1744604507169,0.03,132.85,132.84,12.71327772]
[1744604508169,0.03,132.93,132.87,1.0]
[1744604508482,11.71327772,132.92,132.88,1.0]
[1744604508663,6.0482,132.93,132.87,83.5098]
[1744604508982,0.28432314,132.88,132.87,82.5098]
[1744604509185,11.99760086,132.88,132.87,82.5098]
[1744604510288,11.99760086,132.88,132.87,81.0098]
[1744604510880,18.01800086,132.88,132.87,81.0098]
[1744604511181,24.9177855,132.88,132.87,81.0098]
[1744604513585,6.30472314,132.88,132.87,81.0098]
[1744604513794,6.0201,132.89,132.87,81.0098]
[1744604514101,0.14216157,132.88,132.87,81.0098]
[1744604514289,18.75522393,132.88,132.87,81.0098]
[1744604514492,18.8973855,132.88,132.87,81.0098]
[1744604514789,0.28432314,132.88,132.87,81.0098]
[1744604514994,18.8973855,132.88,132.87,81.0098]
[1744604515377,13.0995,132.91,132.88,81.0098]
[1744604515577,18.61306236,132.92,132.88,81.0098]
[1744604515784,0.03,132.93,132.9,1.0]
[1744604515989,24.66136236,132.93,132.9,81.0098]
[1744604516290,0.28432314,132.92,132.9,81.0098]
[1744604516471,18.61306236,132.91,132.9,81.0098]
[1744604516809,6.0483,132.93,132.9,81.0098]
[1744604516978,6.0483,132.93,132.9,82.0098]
[1744604516979,0.03,132.93,132.9,82.0098]
[1744604517173,0.03,132.93,132.92,1.0]
[1744604517380,0.03,132.93,132.92,82.0098]
[1744604518077,18.9273855,132.93,132.92,81.0098]
[1744604518987,0.31432314,132.93,132.92,81.0098]
[1744604519191,0.03,132.93,132.92,81.0098]
[1744604519394,2.6788607,132.96,132.95,1.0]
[1744604519599,2.6788607,132.96,132.95,80.9798]
[1744604519788,27.30872306,132.96,132.95,80.9798]
[1744604519993,27.45088463,132.96,132.95,80.9798]
[1744604520296,2.6788607,132.96,132.95,80.9798]
[1744604521289,2.6788607,132.96,132.95,81.9798]
[1744604522477,2.6788607,132.96,132.95,106.61006236]
[1744604523490,6.07e-05,132.96,132.95,106.61006236]
[1744604523683,6.07e-05,132.96,132.95,108.17456236]
[1744604524498,0.03,133.02,133.01,80.9797393]
[1744604524701,18.64306236,133.02,133.01,80.9797393]
[1744604524888,18.9273855,133.02,133.01,80.9797393]
[1744604525085,24.9414855,133.02,133.01,80.9797393]
[1744604525384,6.32842314,133.02,133.01,80.9797393]
[1744604525591,24.9414855,133.02,133.01,80.9797393]
[1744604525778,50.81329593,133.02,133.01,80.9797393]
[1744604526181,32.0214855,133.02,133.01,80.9797393]
[1744604526380,35.9373383,133.02,133.01,80.9797393]
[1744604527015,54.72914873,133.02,133.01,80.9797393]
[1744604527811,35.79517673,133.02,133.01,80.9797393]
[1744604528101,35.79517673,133.02,132.92,80.9797393]
[1744604528102,0.28432314,132.97,132.92,80.9797393]
[1744604528285,0.28432314,132.94,132.92,80.9797393]
[1744604528894,7.08,132.96,132.92,80.9797393]
[1744604529095,25.69306236,132.96,132.93,1.0]
[1744604529294,7.08,132.96,132.94,1.0]
[1744604529523,25.69306236,133.0,132.95,19.61306236]
[1744604529687,9.9599528,133.02,132.98,1.0]
[1744604529888,18.61306236,133.01,132.98,80.9797393]
[1744604530235,3.9458528,133.02,132.99,1.0]
[1744604530391,3.9458528,133.02,133.01,1.0]
[1744604530596,28.57301516,133.02,132.98,81.9797393]
[1744604531025,28.57301516,133.02,133.0,1.0]
[1744604531026,3.9458528,133.02,133.0,1.0]
[1744604531204,3.9458528,133.02,133.01,1.0]
[1744604531503,3.9458528,133.02,133.01,81.9797393]
[1744604531905,3.9458528,133.02,133.01,114.70100166]
[1744604532298,6.0106,133.1,133.05,1.0]
[1744604532494,6.0106,133.1,133.03,1.0]
[1744604532495,18.61306236,133.07,133.03,1.0]
[1744604532789,18.933972,133.09,133.03,1.0]
[1744604532999,18.61306236,133.06,133.03,1.0]
[1744604533196,0.28432314,133.07,133.04,1.0]
[1744604533401,7.12,133.08,133.04,1.0]
[1744604533601,18.61306236,133.07,133.04,1.0]
[1744604533914,18.61306236,133.06,133.02,78.0338865]
[1744604534093,18.61306236,133.06,133.03,1.0]
[1744604534294,24.62536236,133.06,133.03,1.0]
[1744604534707,18.8973855,133.05,133.02,78.0338865]
[1744604534909,18.61306236,133.04,133.02,77.0338865]
[1744604535110,18.61306236,133.04,133.03,1.0]
[1744604535311,18.61306236,133.04,133.02,77.0338865]
[1744604535690,18.61306236,133.03,133.02,77.0338865]
[1744604536003,18.61306236,133.03,132.98,6.0158]
[1744604536004,6.0145,133.01,132.98,77.0338865]
[1744604536208,18.61306236,132.99,132.98,77.0338865]
[1744604536409,18.61306236,132.99,132.94,78.0338865]
[1744604536607,18.61306236,132.98,132.94,78.0338865]
[1744604536799,18.61306236,132.98,132.96,1.0]
[1744604538194,18.61306236,132.98,132.94,78.0338865]
[1744604538390,18.61306236,132.97,132.94,78.0338865]
[1744604538609,0.28432314,132.97,132.94,77.0338865]
[1744604538811,18.61306236,132.96,132.94,77.0338865]
[1744604539006,18.61306236,132.95,132.94,77.0338865]
[1744604539210,18.61306236,132.96,132.94,78.0338865]
[1744604539612,13.1359,132.98,132.94,78.0338865]
[1744604539813,18.61306236,132.96,132.94,77.0338865]
[1744604540019,18.8973855,132.95,132.94,77.0338865]
[1744604540314,24.63026236,132.95,132.94,77.0338865]
[1744604541499,24.9145855,132.95,132.94,77.0338865]
[1744604546996,47.5223106,132.95,132.87,1.063]
[1744604547209,18.61306236,132.89,132.87,0.063]
[1744604547409,18.8973855,132.88,132.87,82.663]
[1744604548728,62.32265829,132.88,132.87,82.663]
[1744604549221,62.32265829,132.88,132.87,51.8237]
[1744604550626,62.32265829,132.88,132.87,21.3991]
[1744604551128,24.9177855,132.88,132.87,21.3991]
[1744604551317,0.28432314,132.87,132.81,1.0]
[1744604551627,18.61306236,132.83,132.81,82.6]
[1744604552224,18.61306236,132.84,132.81,82.6]
[1744604552729,18.61306236,132.83,132.81,82.6]
[1744604553109,18.61306236,132.82,132.81,82.6]
[1744604553722,18.75522393,132.82,132.81,82.6]
[1744604554132,18.8973855,132.82,132.81,82.6]
[1744604555031,24.9204855,132.82,132.81,82.6]
[1744604555614,18.8973855,132.82,132.81,82.6]
[1744604555813,24.9204855,132.82,132.81,82.6]
[1744604556327,8.7302,132.92,132.85,1.0]
[1744604556525,18.61306236,132.88,132.85,58.96383764]
[1744604556725,18.61306236,132.87,132.85,57.96383764]
[1744604557331,24.63416236,132.87,132.85,57.96383764]
[1744604557714,18.8973855,132.86,132.85,57.96383764]
[1744604558027,18.8973855,132.86,132.82,57.96383764]
[1744604558334,18.8973855,132.83,132.82,57.96383764]
[1744604559321,24.9200855,132.83,132.82,57.96383764]
[1744604567917,43.71189593,132.83,132.82,57.96383764]
[1744604568525,43.71189593,132.83,132.82,27.43773764]
[1744604570945,6.0227,132.83,132.82,27.43773764]
[1744604571330,7.16,132.85,132.82,28.43773764]
[1744604571732,0.28432314,132.84,132.82,28.43773764]
[1744604571931,7.16,132.85,132.82,28.43773764]
[1744604572327,7.16,132.85,132.83,1.0]
[1744604572728,13.1818,132.85,132.83,1.0]
[1744604573041,7.30216157,132.85,132.84,1.0]
[1744604573254,7.44432314,132.85,132.84,1.0]
[1744604573865,0.28432314,132.84,132.82,27.43773764]
[1744604574144,0.28432314,132.84,132.83,1.0]
[1744604575550,258.37,132.89,132.86,1.0]
[1744604575733,0.03,132.89,132.86,1.0]
[1744604575933,0.31432314,132.89,132.86,1.0]
[1744604576440,24.9475855,132.89,132.86,1.0]
[1744604576651,0.28432314,132.86,132.83,1.0]
[1744604576830,18.61306236,132.85,132.83,1.0]
[1744604577031,18.8973855,132.86,132.84,1.0]
[1744604577234,18.8973855,132.86,132.83,1.0]
[1744604577434,0.28432314,132.86,132.84,1.0]
[1744604577632,0.28432314,132.86,132.83,1.0]
[1744604578353,18.8973855,132.86,132.82,28.43773764]
[1744604578540,0.28432314,132.84,132.82,28.43773764]
[1744604580053,0.28432314,132.84,132.82,27.43773764]
[1744604580294,18.8973855,132.84,132.82,27.43773764]
[1744604580560,6.0227,132.83,132.82,27.43773764]
[1744604580855,24.9197855,132.84,132.82,27.43773764]
[1744604581238,18.61306236,132.83,132.82,27.43773764]
[1744604581658,24.9197855,132.84,132.82,27.43773764]
[1744604584553,43.71189593,132.83,132.82,27.43773764]
[1744604585044,58.76869593,132.83,132.82,82.6]
[1744604585372,19.07613357,132.8,132.79,82.663]
[1744604585534,44.79181043,132.77,132.76,0.063]
[1744604585740,45.07613357,132.77,132.76,0.063]
[1744604586268,63.68919593,132.77,132.76,0.063]
[1744604587474,69.71459593,132.77,132.76,0.063]
[1744604587644,70.84919593,132.77,132.76,0.063]
[1744604587845,1.38083551,132.83,132.77,1.0]
[1744604588147,18.61306236,132.86,132.81,19.61306236]
[1744604588358,7.16,132.87,132.84,1.0]
[1744604588533,31.79396236,132.87,132.84,1.0]
[1744604588738,31.79396236,132.87,132.83,1.0]
[1744604588938,0.28432314,132.85,132.81,1.0]
[1744604589253,13.1809,132.87,132.83,1.0]
[1744604589254,25.77306236,132.87,132.83,1.0]
[1744604589474,0.28432314,132.86,132.83,1.0]
[1744604589659,31.79396236,132.87,132.83,1.0]
[1744604589839,7.16,132.87,132.83,19.61306236]
[1744604590037,0.03,132.89,132.81,6.0236]
[1744604590038,0.03,132.89,132.86,1.0]
[1744604590238,0.03,132.89,132.87,1.0]
[1744604590583,0.31432314,132.89,132.87,1.0]
[1744604590870,0.03,132.89,132.87,1.0]
[1744604591769,0.31432314,132.89,132.87,1.0]
[1744604592071,0.17216157,132.89,132.87,1.0]
[1744604592481,0.31432314,132.89,132.87,1.0]
[1744604593441,0.28432314,132.87,132.84,1.0]
[1744604593962,0.28432314,132.85,132.83,82.6]
[1744604594265,0.28432314,132.85,132.84,1.0]
[1744604594867,0.03,132.89,132.85,1.0]
[1744604595064,6.05,132.89,132.86,19.61306236]
[1744604595283,0.28432314,132.88,132.86,1.0]
[1744604595561,18.8973855,132.88,132.85,82.6]
[1744604595741,18.8973855,132.88,132.85,83.6]
[1744604595937,0.28432314,132.88,132.85,83.6]
[1744604596155,0.28432314,132.88,132.85,102.21306236]
[1744604596358,0.03,132.89,132.86,18.61306236]
[1744604596564,0.03,132.89,132.88,1.0]
[1744604596752,0.03,132.89,132.88,83.6]
[1744604597352,0.03,132.89,132.88,102.21306236]
[1744604597656,0.03,132.89,132.88,83.6]
[1744604598162,0.03,132.89,132.88,82.6]
[1744604598366,0.03,132.89,132.85,82.6]
[1744604598367,0.28432314,132.88,132.85,82.6]
[1744604598545,0.28432314,132.86,132.85,82.6]
[1744604598746,0.28432314,132.86,132.85,83.6]
[1744604599164,0.28432314,132.86,132.85,82.6]
[1744604601170,37.68919593,132.87,132.85,82.6]
[1744604604249,6.30562314,132.86,132.85,82.6]
[1744604605374,24.9186855,132.86,132.85,82.6]
[1744604605864,43.71049593,132.86,132.85,82.6]
[1744604606175,43.71049593,132.86,132.85,40.14293316]
[1744604606364,0.28432314,132.81,132.79,1.0]
[1744604606672,18.8973855,132.81,132.79,39.85873316]
[1744604606971,0.28432314,132.81,132.79,39.85873316]
[1744604607166,0.28432314,132.81,132.79,40.85873316]
[1744604607967,18.8973855,132.81,132.79,40.85873316]
[1744604608674,24.9209855,132.81,132.79,40.85873316]
[1744604610176,24.9209855,132.81,132.79,39.85873316]
[1744604610374,18.61306236,132.8,132.79,39.85873316]
[1744604610877,43.71319593,132.8,132.79,39.85873316]
[1744604611373,6.0204,132.88,132.8,1.0]
[1744604611556,18.61306236,132.86,132.81,19.61306236]
[1744604611757,0.14216157,132.87,132.82,1.0]
[1744604611959,18.61306236,132.85,132.82,1.0]
[1744604612570,18.8973855,132.84,132.79,108.82846236]
[1744604612772,18.8973855,132.84,132.79,90.2154]
[1744604612970,18.8973855,132.84,132.8,1.0]
[1744604614080,0.28432314,132.85,132.81,1.0]
[1744604614669,0.14216157,132.85,132.81,1.0]
[1744604615065,18.8973855,132.85,132.81,1.0]
[1744604616379,18.8973855,132.85,132.81,7.0236]
[1744604616588,18.8973855,132.85,132.81,89.6236]
[1744604618564,18.61306236,132.84,132.81,83.6]
[1744604618760,24.63536236,132.84,132.81,83.6]
[1744604619476,18.61306236,132.82,132.81,82.6]
[1744604619679,18.8973855,132.82,132.81,82.6]
[1744604620260,0.28432314,132.82,132.81,82.6]
[1744604622287,24.9204855,132.82,132.81,82.6]
[1744604625386,43.71229593,132.82,132.81,82.6]
[1744604628578,0.28432314,132.81,132.77,82.6]
[1744604628778,18.8973855,132.78,132.77,82.6]
[1744604630084,0.28432314,132.78,132.77,82.6]
[1744604630391,21.0842,132.8,132.78,83.6]
[1744604630392,6.024,132.8,132.78,83.6]
[1744604630597,6.0218,132.85,132.81,1.0]
[1744604630794,24.63346236,132.88,132.85,1.0]
[1744604630976,6.0204,132.88,132.85,83.6]
[1744604631293,6.0204,132.88,132.87,1.0]
[1744604631496,6.0204,132.88,132.85,82.6]
[1744604631497,0.28432314,132.87,132.85,83.6]
[1744604631793,30.70542249,132.86,132.85,82.6]
[1744604632696,18.79181043,132.83,132.82,78.06772447]
[1744604632878,30.70542249,132.83,132.82,78.06772447]
[1744604633278,37.70655327,132.83,132.82,78.06772447]
[1744604634204,13.1022,132.84,132.82,79.06772447]
[1744604634497,18.6304197,132.83,132.82,79.06772447]
[1744604634701,18.91474284,132.83,132.82,78.06772447]
[1744604634871,24.93744284,132.83,132.82,78.06772447]
[1744604636188,43.72925327,132.83,132.82,78.06772447]
[1744604636578,0.28432314,132.82,132.79,78.06772447]
[1744604636890,43.73055327,132.8,132.79,46.38822447]
[1744604637206,43.73055327,132.8,132.71,7.143]
[1744604637207,44.79181043,132.76,132.73,82.663]
[1744604637377,18.91474284,132.74,132.73,82.663]
[1744604638398,24.94154284,132.74,132.73,82.663]
[1744604643581,43.73335327,132.74,132.73,82.663]
[1744604644411,18.79181043,132.72,132.71,82.663]
[1744604644592,0.14216157,132.71,132.68,82.663]
[1744604644909,37.70655327,132.69,132.68,82.663]
[1744604645907,43.73555327,132.69,132.68,82.663]
[1744604649288,18.91474284,132.69,132.68,82.663]
[1744604649608,0.28432314,132.69,132.68,82.663]
[1744604649811,31.7391197,132.7,132.68,82.663]
[1744604649997,18.91474284,132.69,132.68,82.663]
[1744604650194,37.70655327,132.69,132.68,82.663]
[1744604650516,43.73555327,132.69,132.68,82.663]
[1744604652613,24.94374284,132.69,132.68,82.663]
[1744604652825,18.79181043,132.73,132.69,1.0]
[1744604652990,13.1068,132.74,132.69,1.0]
[1744604653189,18.6304197,132.72,132.69,83.6]
[1744604653609,25.7104197,132.74,132.72,1.0]
[1744604653796,25.7104197,132.74,132.72,83.6]
[1744604654118,7.08,132.74,132.73,1.0]
[1744604654288,7.08,132.74,132.73,83.6]
[1744604654494,31.7357197,132.78,132.73,102.2304197]
[1744604654810,18.91474284,132.77,132.73,83.6]
[1744604655029,0.28432314,132.77,132.76,1.0]
[1744604655193,18.91474284,132.77,132.76,83.6]
[1744604655510,18.91474284,132.77,132.76,82.6]
[1744604656001,18.77258127,132.77,132.76,82.6]
[1744604656307,37.70655327,132.77,132.76,82.6]
[1744604656609,43.73195327,132.77,132.76,82.6]
[1744604657296,50.91195327,132.77,132.76,82.6]
[1744604658901,0.14216157,132.76,132.74,51.8772]
[1744604659104,37.70655327,132.75,132.74,51.8772]
[1744604659817,0.28432314,132.74,132.71,51.8772]
[1744604660008,18.6304197,132.72,132.71,51.8772]
[1744604660319,25.8104197,132.72,132.71,51.8772]
[1744604660923,31.8381197,132.72,132.71,51.8772]
[1744604661425,7.46432314,132.72,132.71,52.8772]
[1744604661728,13.2065,132.75,132.73,1.0]
[1744604661907,18.6304197,132.74,132.72,45.6972]
[1744604662230,18.91474284,132.73,132.72,45.6972]
[1744604662619,18.6304197,132.74,132.72,45.6972]
[1744604662812,7.18,132.75,132.74,1.0]
[1744604663131,7.32216157,132.75,132.74,45.6972]
[1744604663434,7.18,132.75,132.74,45.6972]
[1744604664001,24.6564197,132.76,132.74,45.6972]
[1744604664002,18.6304197,132.77,132.75,1.0]
[1744604664197,24.6555197,132.78,132.75,45.6972]
[1744604664425,18.6304197,132.78,132.75,45.6972]
[1744604664633,25.8104197,132.79,132.77,1.0]
[1744604664812,25.8104197,132.79,132.78,1.0]
[1744604664813,7.18,132.79,132.78,1.0]
[1744604665005,7.18,132.79,132.78,45.6972]
[1744604665310,32.11924284,132.79,132.78,44.6972]
[1744604665910,26.09474284,132.79,132.78,44.6972]
[1744604666114,31.97708127,132.79,132.78,44.6972]
[1744604666506,32.11924284,132.79,132.78,44.6972]
[1744604667123,7.18,132.79,132.78,45.6972]
[1744604667314,24.6837197,132.82,132.8,1.0]
[1744604667513,24.6837197,132.82,132.8,45.6972]
[1744604668027,6.0533,132.82,132.8,45.6972]
[1744604668238,0.03,132.82,132.8,45.6972]
[1744604668438,0.03,132.82,132.81,1.0]
[1744604668614,0.03,132.82,132.81,45.6972]
[1744604668811,6.0531,132.82,132.81,45.6972]
[1744604669019,24.96784284,132.82,132.81,44.6972]
[1744604669537,0.03,132.82,132.81,44.6972]
[1744604669752,0.03,132.82,132.81,45.6972]
[1744604670830,24.6835197,132.82,132.81,44.6972]
[1744604671216,24.6835197,132.82,132.81,45.6972]
[1744604671418,24.6835197,132.82,132.81,44.6972]
[1744604671619,24.96784284,132.82,132.81,44.6972]
[1744604671813,43.75965327,132.82,132.81,44.6972]
[1744604672019,43.75965327,132.82,132.81,32.70157526]
[1744604672318,43.75965327,132.82,132.76,7.526e-05]
[1744604672319,19.07613357,132.81,132.76,7.526e-05]
[1744604672628,37.70655327,132.77,132.74,1.0]
[1744604672837,18.91474284,132.75,132.73,7.526e-05]
[1744604673133,18.6304197,132.74,132.73,1.00007526]
[1744604673933,24.6572197,132.74,132.73,1.00007526]
[1744604675638,6.0268,132.74,132.73,1.00007526]
[1744604675841,24.6563197,132.76,132.73,1.00007526]
[1744604676042,13.2055,132.77,132.75,1.0]
[1744604676242,13.2055,132.77,132.76,1.0]
[1744604676842,31.8359197,132.77,132.76,1.0]
[1744604678339,13.2055,132.77,132.76,1.0]
[1744604679140,7.18,132.77,132.76,1.0]
[1744604679335,7.18,132.77,132.76,1.00007526]
[1744604679544,6.0238,132.81,132.79,1.0]
[1744604679723,24.6542197,132.81,132.79,1.0]
[1744604680041,24.6837197,132.82,132.8,1.0]
[1744604680620,18.6304197,132.81,132.8,1.0]
[1744604680928,6.0533,132.82,132.8,1.0]
[1744604681114,24.6837197,132.82,132.8,1.0]
[1744604681935,18.91474284,132.81,132.78,1.0]
[1744604682143,18.6304197,132.79,132.77,1.0]
[1744604682321,18.6304197,132.78,132.77,1.0]
[1744604682521,24.6554197,132.78,132.77,1.0]
[1744604682725,24.6554197,132.78,132.76,1.0]
[1744604682929,18.6304197,132.77,132.76,1.0]
[1744604685452,0.28432314,132.79,132.76,1.0]
[1744604685634,18.6304197,132.77,132.76,1.0]
[1744604686231,25.99474284,132.77,132.76,7.526e-05]
[1744604689351,32.02014284,132.77,132.76,7.526e-05]
[1744604691030,32.02014284,132.77,132.76,1.00007526]
[1744604691447,24.94014284,132.77,132.76,1.00007526]
[1744604692257,6.0254,132.77,132.76,1.00007526]
[1744604693154,6.0254,132.77,132.76,7.526e-05]
[1744604693334,6.0254,132.77,132.76,1.00007526]
[1744604693534,24.6558197,132.77,132.76,1.00007526]
[1744604695755,24.94014284,132.77,132.76,7.526e-05]